Workbook

Sheet Breakeven_Einfuehrung
C4: Modul M 04: Break-even-Analyse
C5: 1. Einführung
C7: Eine umsatzbezogene Breakeven-Analyse zielt darauf ab, jene Umsatzgröße U [EUR] zu ermitteln, bei der die zugehörigen Umsatz-
C8: erlöse E [EUR] gerade die anfallenden Kosten K (= variablen Kosten Kv [EUR] + Fixkosten Kf [EUR]) decken, sodass der Deckungs-
C9: beitrag DB [EUR] - als Differenz zwischen den Umsatzerlösen E und den variablen Kosten Kv - genau dem Betrag der Fixkosten Kf
C10: entspricht und somit der Gewinn G (als Differenz zwischen den Erlösen E und den Kosten K) den Wert G = 0 annimmt.
C12: Die nachstehende interaktive Grafik soll diesen Zusammenhang visualisiert verdeutlichen.
C13: Um einen Gewinn G mit G > 0 zu erzielen, gibt es in diesem Kontext nur zwei Möglichkeiten.
C14: Aufgabe: Verändern Sie über die eingefügten 'SpinButton' die Höhe der Grafik-Elemente "Umsatz", "variablen Kosten"
C15: und "Fixkosten" und verfolgen Sie, in welchen Situationen ein Gewinn G > 0 zu erwarten ist!
J22: Gewinn = 0

Sheet Breakeven_01_A
C4: Modul M 04: Break-even-Analyse
C5: 2. Fallbeispiel [1]
C6: Dem Planungsechner der Fa. X-GmbH wird die Aufgabe gestellt, zu ermitteln, wie hoch der
C7: Quartalsumsatz mindestens sein muss, damit wenigstens die Kosten im Quartal gedeckt werden.
C8: Folgende quartalsbezogene Angaben liegen hierzu vor:
C10: Fixkosten [1000 EUR] | G10: 120
C11: Durchschnittlicher Umsatz [1000 EUR] | G11: 300
C12: Durchschnittl. variable Kosten [1000 EUR] | G12: 180
C14: Die Aufgabe ist rechnerisch und grafisch zu lösen.
C18: 3. Rechnerische Lösung:
C20: Anteil variabler Kosten am Umsatz : | H20: [%]
C21: Deckungsbeitrag DB [%] | H21: [%]
C25: Gewinnschwelle U0 = | G25: =
I26: [1000 EUR]
C31: 4. Grafische Lösung: | H31: alle Angaben in [1000 EUR]
C33: Umsatz U | D33: Erlöse E | F33: variable Kosten Kv | G33: Fixkosten Kf | H33: Gesamt-kosten K | I33: Gewinn G
C34: 0
C35: =C34+50 -> 50
C36: =C35+50 -> 100
C37: 150
C38: 200
C39: 250
C40: 300
C41: 350
C42: 400
C44: Diagramm:

Sheet Breakeven_01_L (hidden)
C4: 2. Fallbeispiel: Situation, Aufgabe
C6: Dem Planungsechner der Fa. X GmbH wird die Aufgabe gestellt, zu ermitteln, wie hoch der
C7: Quartalsumsatz mindestens sein muss, damit wenigstens die Kosten im Quartal gedeckt werden.
C8: Folgende quartalsbezogene Angaben liegen hierzu vor:
H9: Variation der Werte
C10: Fixkosten [1000 EUR] | G10: 120
C11: Durchschnittlicher Umsatz [1000 EUR] | G11: 300
C12: Durchschnittl. variable Kosten [1000 EUR] | G12: 180
C14: Die Aufgabe ist rechnerisch und grafisch zu lösen.
C18: 3. Rechnerische Lösung:
C20: Anteil variabler Kosten am Umsatz : | G20: =ROUND(G12*100/G11,1) -> 60 | H20: [%]
C21: Deckungsbeitrag DB [%] | G21: =ROUND(100-G20,1) -> 40 | H21: [%]
E24: Fixkosten [EUR] * 100 [%] | H24: =CONCATENATE(G10 &" * 100") -> 120 * 100
C25: Gewinnschwelle U0 = | G25: = | I25: =G10*100/G21 -> 300
E26: DB [%] | H26: =CONCATENATE(G21 &" [%]") -> 40 [%] | I26: [1000 EUR]
C31: 4. Grafische Lösung: | H31: alle Angaben in [1000 EUR]
C33: Umsatz U | D33: Erlöse E | F33: Variable Kosten Kv | G33: Fixkosten Kf | H33: Gesamt-kosten K | I33: Gewinn G
C34: 0 | D34: =C34 -> 0 | F34: =C34*G20/100 -> 0 | G34: =G10 -> 120 | H34: =F34+G34 -> 120 | I34: =D34-H34 -> -120
C35: =C34+50 -> 50 | D35: =C35 -> 50 | F35: =C35*$G$20/100 -> 30 | G35: =$G$10 -> 120 | H35: =F35+G35 -> 150 | I35: =D35-H35 -> -100
C36: =C35+50 -> 100 | D36: 100 | F36: =C36*$G$20/100 -> 60 | G36: =$G$10 -> 120 | H36: =F36+G36 -> 180 | I36: =D36-H36 -> -80
C37: 150 | D37: 150 | F37: 90 | G37: 120 | H37: 210 | I37: -60
C38: 200 | D38: 200 | F38: 120 | G38: 120 | H38: 240 | I38: -40
C39: 250 | D39: 250 | F39: 150 | G39: 120 | H39: 270 | I39: -20
C40: 300 | D40: 300 | F40: 180 | G40: 120 | H40: 300 | I40: 0
C41: 350 | D41: 350 | F41: 210 | G41: 120 | H41: 330 | I41: 20
C42: 400 | D42: 400 | F42: 240 | G42: 120 | H42: 360 | I42: 40
C44: Diagramm:

Sheet Breakeven_02_A
C5: =Breakeven_01_A!C4 -> Modul M 04: Break-even-Analyse
C6: 5. Fallbeispiel [2]
C7: Dem Planungsrechner der Fa. X-GmbH wird ferner die Aufgabe gestellt, zu ermitteln, wie hoch
C8: die Auftragsmenge für die Herstellung von einfachen Blechscheren sein muss, damit wenigstens
C9: die Kosten gedeckt werden.
C10: Folgende auftragsbezogene Angaben liegen dem Controller vor:
C11: Fixkosten [EUR] | G11: 3000
C12: Preis für eine Schere [EUR/ME] | G12: 15
C13: Direkte (variable) Kosten [EUR/ME] | G13: 9
C15: Die Aufgabe ist rechnerisch und grafisch zu lösen.
C19: 6. Rechnerische Lösung:
C22: Break-even-Menge x0 = | G22: = | I22: =
J23: [ME]
C27: 7. Grafische Lösung: | H27: alle Angaben in [EUR]
C29: Menge x | D29: Erlöse E | F29: Variable Kosten Kv | G29: Fixkosten Kf | H29: Gesamtkosten K | J29: Gewinn G
C30: 0
C31: =C30+100 -> 100
C32: =C31+100 -> 200
C33: 300
C34: 400
C35: 500
C36: 600
C37: 700
C38: 800
C40: Diagramm:

Sheet Breakeven_02_L (hidden)
C4: 5. Fallbeispiel [2]
C6: Dem Pnanungsrechner der Fa. Maschbau GmbH wird ferner die Aufgabe gestellt, zu ermitteln, wie hoch
C7: die Auftragsmenge für die Herstellung von einfachen Blechscheren sein muss, damit wenigstens
C8: die Kosten gedeckt werden.
C9: Folgende auftragsbezogene Angaben liegen dem Controller vor:
C10: Fixkosten [EUR] | G10: 3000 | I10: Variation der Werte
C11: Preis für eine Schere [EUR/ME] | G11: 15
C12: Direkte (variable) Kosten [EUR/ME] | G12: 9
C14: Die Aufgabe ist rechnerisch und grafisch zu lösen.
C18: 6. Rechnerische Lösung:
E20: Fixkosten [EUR] | H20: =G10 -> 3000
C21: Break-even-Menge x0 = | G21: = | I21: = | J21: =H20/H22 -> 500
E22: Preis ./. var. Stückkosten | H22: =G11-G12 -> 6 | J22: [ME]
C26: 7. Grafische Lösung: | H26: alle Angaben in [EUR]
C28: Menge x | D28: Erlöse E | F28: Variable Kosten Kv | G28: Fixkosten Kf | H28: Gesamt-kosten K | J28: Gewinn G
C29: 0 | D29: =C29*G11 -> 0 | F29: =C29*G12 -> 0 | G29: =G10 -> 3000 | H29: =F29+G29 -> 3000 | J29: =D29-H29 -> -3000
C30: =C29+100 -> 100 | D30: =C30*$G$11 -> 1500 | F30: =C30*$G$12 -> 900 | G30: =$G$10 -> 3000 | H30: 3900 | J30: -2400
C31: =C30+100 -> 200 | D31: =C31*$G$11 -> 3000 | F31: =C31*$G$12 -> 1800 | G31: 3000 | H31: 4800 | J31: -1800
C32: 300 | D32: 4500 | F32: 2700 | G32: 3000 | H32: 5700 | J32: -1200
C33: 400 | D33: 6000 | F33: 3600 | G33: 3000 | H33: 6600 | J33: -600
C34: 500 | D34: 7500 | F34: 4500 | G34: 3000 | H34: 7500 | J34: 0
C35: 600 | D35: 9000 | F35: 5400 | G35: 3000 | H35: 8400 | J35: 600
C36: 700 | D36: 10500 | F36: 6300 | G36: 3000 | H36: 9300 | J36: 1200
C37: 800 | D37: 12000 | F37: 7200 | G37: 3000 | H37: 10200 | J37: 1800
C39: Diagramm:

Sheet Breakeven_031_A
C4: 8. Fallbeisiel [3]
C6: Das Unternehmen X-GmbH beabsichtigt, die Herstellung und den Vertrieb des Produkts E1 zu
C7: einem relativ eigenständigen Geschäftsfeld zu entwickeln.
C9: Es ist zu untersuchen, inwieweit sich dieses Vorhaben betriebswirtschaftlich "rechnet", wenn von
C10: folgenden Angaben und Zielvorgaben auszugehen ist:
C12: Zurechenbare Fixkosten des Geschäftsfeldes | H12: 9000 | I12: [1000 EUR]
C13: darin enthalten sind Abschreibungen in Höhe von | H13: 2000 | I13: [1000 EUR]
C14: Angestrebter Netto-Verkaufspreis des Produkts [EUR/EE] | H14: 4000 | I14: [EUR/ME]
C15: variable Stückkosten des Produkts | H15: 2200 | I15: [EUR/ME]
C16: Vorgabe für den zu erreichenden Gewinn | H16: 2000 | I16: [1000 EUR]
C17: Kapazitätsgrenze | H17: 6000 | I17: [ME]
C19: Im Einzelnen ist zu ermitteln:
C21: a) die kostendeckende Gewinnschwelle (in ME und in Euro),
C22: b) die das Erreichen des Gewinnzieles notwendige Absatzmenge [ME],
C23: c) der "Cash-Point" [ME], an dem die ausgabenwirksamen Kosten durch die Umsatzerlöse gedeckt werden,
C24: d) der Sicherheitsabstand zwischen Gewinnschwelle und Kapazitätsgrenze [ME] sowie
C25: e) der diesbezügliche Sicherheitskoeffizient [%].
C27: Die Aufgabe ist rechnerisch und graphisch zu lösen!
C31: 9. Rechnerische Lösung:
C33: a) Break-even Point x0
C36: Break-even-Menge x0 = | G36: = | I36: =
J37: [ME]
C39: Umsatz am Break-even-Point U0 = | I39: [1000 EUR]
C43: b) Absatzmenge zum Erreichen des Gewinnzieles xGew
C46: Absatzmenge xGew = | G46: = | I46: =
J47: [ME]
C49: Anmerkungen:
C58: c) Absatzmenge zum Erreichen des "Cash-Points" xCash
C61: Absatzmenge xCash = | G61: = | I61: =
J62: [ME]
C64: Anmerkung:

Sheet Breakeven_031_L (hidden)
C4: 8. Fallbeispiel [3]
C6: Das Unternehmen X-GmbH beabsichtigt, die Herstellung und den Vertrieb des Produkts E1 zu
C7: einem relativ eigenständigen Geschäftsfeld zu entwickeln.
C9: Aufgabe:
C10: Es ist zu untersuchen, inwieweit sich dieses Vorhaben betriebswirtschaftlich "rechnet", wenn von
C11: folgenden Angaben und Zielvorgaben auszugehen ist:
C13: Zurechenbare Fixkosten des Geschäftsfeldes | H13: 9000 | I13: [1000 EUR]
C14: darin enthalten sind Abschreibungen in Höhe von | H14: 2000 | I14: [1000 EUR]
C15: Angestrebter Netto-Verkaufspreis des Produkts [EUR/EE] | H15: 4000 | I15: [EUR/ME]
C16: variable Stückkosten des Produkts | H16: 2200 | I16: [EUR/ME]
C17: Vorgabe für den zu erreichenden Gewinn | H17: 2000 | I17: [1000 EUR]
C18: Kapazitätsgrenze | H18: 6000 | I18: [ME]
C20: Im Einzelnen ist zu ermitteln:
C22: a) die kostendeckende Gewinnschwelle (in ME und in Euro),
C23: b) die das Erreichen des Gewinnzieles notwendige Absatzmenge [ME],
C24: c) der "Cash-Point" [ME], an dem die ausgabenwirksamen Kosten durch die Umsatzerlöse gedeckt werden,
C25: d) der Sicherheitsabstand zwischen Gewinnschwelle und Kapazitätsgrenze [ME] sowie
C26: e) der diesbezügliche Sicherheitskoeffizient [%].
C28: Die Aufgabe ist rechnerisch und graphisch zu lösen!
C32: 9. Rechnerische Lösung:
C34: a) Break-even Point x0
E36: Fixkosten [EUR] | H36: =H13*1000 -> 9000000
C37: Break-even-Menge x0 = | G37: = | I37: = | J37: =H36/H38 -> 5000
E38: Preis ./. var. Stückkosten | H38: =H15-H16 -> 1800 | J38: [ME]
C40: Umsatz am Break-even-Point U0 = | H40: =J37*H15/1000 -> 20000 | I40: [1000 EUR]
C44: b) Absatzmenge zum Erreichen des Gewinnzieles xGew
E46: Fixkosten + Gewinn | H46: =(H13+H17)*1000 -> 11000000
C47: Absatzmenge xGew = | G47: = | I47: = | J47: =H46/H48 -> 6111.111111
E48: Preis ./. var. Stückkosten | H48: =H15-H16 -> 1800 | J48: [ME]
C50: Anmerkung.
C51: Das Gewinnziel kann bei der gegebenen Kapazitätsgrenze nicht erreicht werden.
C52: Lösungen: (1) Ausweitung der Kapazitätsgrenze. Dies führt aber sicherlich zur Erhöhung der Fixkosten.
C53: (2) Erhöhung des Verkaufspreises. Dies wird aber möglicherweise von den Kunden nicht akzeptiert.
C54: (3) Senkung der variablen Kosten durch Erhöhung der Produktivität oder durch Senkung der Materialintensität.
C55: Nutzen Sie die "Drehfelder", um die Auswirkungen "durchzuspielen"!
C59: c) Absatzmenge zum Erreichen des "Cash-Points" xCash
E61: Fixkosten ./. Abschreibungen | H61: =(H13-H14)*1000 -> 7000000
C62: Absatzmenge xCash = | G62: = | I62: = | J62: =H61/H63 -> 3888.888889
E63: Preis ./. var. Stückkosten | H63: =H15-H16 -> 1800 | J63: [ME]
C65: Anmerkung:
C66: Die Abschreibungen (als Bestandteil der Fixkosten) sind Kosten der Leistungserstellung und -verwertung,
C67: allerdings "Aufwand ohne Geldabfluss"! Um jenen Punkt zu finden, bei dem die Umsatzerlöse wenigstens die
C68: auszahlungswirksamen Fixkosten decken, wird der "Cash-Point" nach obiger Formel bestimmt.

Sheet Breakeven_032_A
C4: 9. Rechnerische Lösung Fortsetzung):
C6: d) der Sicherheitsabstand und e) Sicherheitskoeffizient
C9: Sicherheitsabstand Sx = | H9: ./.
C11: Sicherheitsabstand Sx = | G11: ./. | I11: = | K11: [ME]
H13: ./.
C14: Sicherheitskoeffizient sx = | L14: * | M14: 100 [%]
G17: ./.
C18: Sicherheitskoeffizient sx = | I18: * 100 = | L18: %
C23: 10. Grafische Lösung:
C25: Menge x [EE] | D25: var. Kosten Kv [TEUR] | F25: Fixkosten Kf [TEUR] | G25: Gesamtkosten K [TEUR] | I25: Umsatzerlöse E [TEUR] | K25: Erfolg [TEUR]
C26: 0
C27: =C26+500 -> 500
C28: =C27+500 -> 1000
C29: 1500
C30: 2000
C31: 2500
C32: 3000
C33: 3500
C34: 4000
C35: 4500
C36: 5000
C37: 5500
C38: 6000
C39: 6500
C41: Diagramm:

Sheet Breakeven_032_L (hidden)
C4: 8. Fallbeispiel [3] Lösung Fortsetzung):
C6: d) der Sicherheitsabstand und e) Sicherheitskoeffizient
C9: Sicherheitsabstand Sx = | F9: Kapazität [ME] | H9: ./. | I9: Break-even-Menge [ME]
C11: Sicherheitsabstand Sx = | F11: =Breakeven_031_L!H18 -> 6000 | G11: ./. | H11: =Breakeven_031_L!J37 -> 5000 | I11: = | J11: =F11-H11 -> 1000 | K11: [ME]
F14: =F9 -> Kapazität [ME] | H14: ./. | I14: =I9 -> Break-even-Menge [ME]
C15: Sicherheitskoeffizient sx = | L15: * | M15: 100 [%]
H16: =F9 -> Kapazität [ME]
F19: =Breakeven_031_L!H18 -> 6000 | G19: ./. | H19: =Breakeven_031_L!J37 -> 5000
C20: Sicherheitskoeffizient sx = | I20: * 100 = | K20: =(F19-H19)*100/G21 -> 16.66666667 | L20: %
G21: =Breakeven_031_L!H18 -> 6000
C26: 9. Grafische Lösung: | F26: Änderung: | G26: Preis | H26: =Breakeven_031_L!H15 -> 4000 | I26: var. Kosten | K26: =Breakeven_031_L!H16 -> 2200
C28: Menge x [EE] | D28: var. Kosten Kv [TEUR] | F28: Fixkosten Kf [TEUR] | G28: Gesamtkosten K [TEUR] | I28: Umsatzerlöse E [TEUR] | K28: Erfolg [TEUR]
C29: 0 | D29: =C29*Breakeven_031_L!$H$16/1000 -> 0 | F29: =Breakeven_031_L!$H$13 -> 9000 | G29: =D29+F29 -> 9000 | I29: =C29*Breakeven_031_L!$H$15/1000 -> 0 | K29: =I29-G29 -> -9000
C30: =C29+500 -> 500 | D30: =C30*Breakeven_031_L!$H$16/1000 -> 1100 | F30: =Breakeven_031_L!$H$13 -> 9000 | G30: =D30+F30 -> 10100 | I30: =C30*Breakeven_031_L!$H$15/1000 -> 2000 | K30: =I30-G30 -> -8100
C31: =C30+500 -> 1000 | D31: =C31*Breakeven_031_L!$H$16/1000 -> 2200 | F31: =Breakeven_031_L!$H$13 -> 9000 | G31: 11200 | I31: =C31*Breakeven_031_L!$H$15/1000 -> 4000 | K31: -7200
C32: 1500 | D32: =C32*Breakeven_031_L!$H$16/1000 -> 3300 | F32: =Breakeven_031_L!$H$13 -> 9000 | G32: 12300 | I32: =C32*Breakeven_031_L!$H$15/1000 -> 6000 | K32: -6300
C33: 2000 | D33: =C33*Breakeven_031_L!$H$16/1000 -> 4400 | F33: =Breakeven_031_L!$H$13 -> 9000 | G33: 13400 | I33: =C33*Breakeven_031_L!$H$15/1000 -> 8000 | K33: -5400
C34: 2500 | D34: =C34*Breakeven_031_L!$H$16/1000 -> 5500 | F34: =Breakeven_031_L!$H$13 -> 9000 | G34: 14500 | I34: =C34*Breakeven_031_L!$H$15/1000 -> 10000 | K34: -4500
C35: 3000 | D35: =C35*Breakeven_031_L!$H$16/1000 -> 6600 | F35: =Breakeven_031_L!$H$13 -> 9000 | G35: 15600 | I35: =C35*Breakeven_031_L!$H$15/1000 -> 12000 | K35: -3600
C36: 3500 | D36: =C36*Breakeven_031_L!$H$16/1000 -> 7700 | F36: =Breakeven_031_L!$H$13 -> 9000 | G36: 16700 | I36: =C36*Breakeven_031_L!$H$15/1000 -> 14000 | K36: -2700
C37: 4000 | D37: =C37*Breakeven_031_L!$H$16/1000 -> 8800 | F37: =Breakeven_031_L!$H$13 -> 9000 | G37: 17800 | I37: =C37*Breakeven_031_L!$H$15/1000 -> 16000 | K37: -1800
C38: 4500 | D38: =C38*Breakeven_031_L!$H$16/1000 -> 9900 | F38: =Breakeven_031_L!$H$13 -> 9000 | G38: 18900 | I38: =C38*Breakeven_031_L!$H$15/1000 -> 18000 | K38: -900
C39: 5000 | D39: =C39*Breakeven_031_L!$H$16/1000 -> 11000 | F39: =Breakeven_031_L!$H$13 -> 9000 | G39: 20000 | I39: =C39*Breakeven_031_L!$H$15/1000 -> 20000 | K39: 0
C40: 5500 | D40: =C40*Breakeven_031_L!$H$16/1000 -> 12100 | F40: =Breakeven_031_L!$H$13 -> 9000 | G40: 21100 | I40: =C40*Breakeven_031_L!$H$15/1000 -> 22000 | K40: 900
C41: 6000 | D41: =C41*Breakeven_031_L!$H$16/1000 -> 13200 | F41: =Breakeven_031_L!$H$13 -> 9000 | G41: 22200 | I41: =C41*Breakeven_031_L!$H$15/1000 -> 24000 | K41: 1800
C42: 6500 | D42: =C42*Breakeven_031_L!$H$16/1000 -> 14300 | F42: =Breakeven_031_L!$H$13 -> 9000 | G42: 23300 | I42: =C42*Breakeven_031_L!$H$15/1000 -> 26000 | K42: 2700
C44: Diagramm:
